bitfinex/quotes_ETHUSD_20251213
["timestamp","ask_amount","ask_price","bid_price","bid_amount"]
[1765608705148,0.09444716,3097.0,3096.0,0.2918]
[1765608705317,0.4919,3096.1,3095.6,4.70905664]
[1765608705720,0.481,3096.0,3095.6,0.58047529]
[1765608707017,0.481,3096.0,3095.4,3.23055854]
[1765608707256,0.481,3096.0,3095.5,3.81096721]
[1765608707913,0.481,3096.0,3095.5,0.87227529]
[1765608708119,3.2299843,3096.0,3095.6,0.2918]
[1765608708737,3.22988901,3096.1,3095.6,0.2918]
[1765608708943,3.22988901,3096.1,3095.6,0.87227529]
[1765608709145,4.31625476,3096.2,3095.6,0.87227529]
[1765608709445,5.08029257,3096.2,3095.6,0.87227529]
[1765608710120,5.08029257,3096.2,3095.6,4.10264894]
[1765608710432,5.08029257,3096.2,3095.6,0.87227529]
[1765608710945,7.82910017,3096.2,3095.6,0.87227529]
[1765608711131,0.09444716,3096.0,3095.3,0.2918]
[1765608711447,3.23007849,3095.9,3095.3,4.10297414]
[1765608711849,3.32446261,3096.0,3095.3,4.10297414]
[1765608712033,3.32446261,3096.0,3095.8,0.2918]
[1765608712349,0.601404,3095.9,3095.3,3.81117414]
[1765608712523,0.511,3095.8,3095.4,0.2918]
[1765608713051,0.511,3095.8,3095.7,0.2918]
[1765608713539,0.511,3095.8,3095.7,0.5836]
[1765608713961,0.511,3095.9,3095.7,0.5836]
[1765608714162,0.511,3095.9,3095.7,0.2918]
[1765608714536,0.511,3095.9,3095.8,0.2918]
[1765608715822,0.57544716,3096.2,3095.8,0.2918]
[1765608715823,3.32427186,3096.2,3095.8,0.2918]
[1765608716162,0.511,3096.0,3095.9,0.2918]
[1765608718556,0.511,3096.0,3095.7,0.2918]
[1765608718725,3.74097416,3096.0,3095.7,0.2918]
[1765608719150,0.4637,3095.8,3095.4,3.81103892]
[1765608719446,0.4637,3095.8,3095.4,0.58047529]
[1765608719631,0.4637,3095.8,3095.4,0.87227529]
[1765608719832,4.32592132,3096.0,3095.7,0.2918]
[1765608720148,5.09093769,3096.0,3095.7,0.2918]
[1765608721151,4.60043769,3096.0,3095.7,0.2918]
[1765608721821,5.09093769,3096.0,3095.7,0.2918]
[1765608722453,4.60043769,3096.0,3095.7,0.2918]
[1765608722970,5.09093769,3096.0,3095.7,0.2918]
[1765608723460,4.60043769,3096.0,3095.7,0.2918]
[1765608724130,0.6492,3095.8,3094.8,3.74217051]
[1765608724323,0.55814716,3095.8,3095.4,3.81101085]
[1765608724535,0.09444716,3095.8,3095.4,3.81101085]
[1765608724754,0.09444716,3095.8,3095.7,0.2918]
[1765608726059,3.32462998,3095.8,3095.7,0.2918]
[1765608726547,0.09444716,3095.8,3095.7,0.2918]
[1765608727973,3.32462998,3095.8,3095.7,0.2918]
[1765608728271,0.09444716,3095.8,3095.7,0.2918]
[1765608728438,4.57740474,3095.8,3094.9,0.2918]
[1765608728645,0.4637,3095.6,3095.1,0.58047529]
[1765608728843,0.511,3095.6,3095.1,0.58047529]
[1765608729043,0.511,3095.6,3095.5,0.2918]
[1765608729238,4.11370474,3095.8,3095.5,0.2918]
[1765608729239,0.39300153,3095.8,3095.5,0.2918]
[1765608729443,0.511,3095.7,3095.5,0.2918]
[1765608729633,0.511,3095.7,3095.5,0.5836]
[1765608729829,0.511,3095.7,3095.6,0.2918]
[1765608732666,0.511,3095.7,3095.4,0.58047529]
[1765608732667,0.9747,3095.7,3095.4,0.58047529]
[1765608732866,1.4652,3095.7,3095.2,0.72487529]
[1765608733065,1.4652,3095.7,3095.2,4.24746302]
[1765608733239,0.9747,3095.7,3095.3,0.2918]
[1765608733562,0.511,3095.7,3095.3,0.2918]
[1765608733869,0.511,3095.7,3095.3,3.52249707]
[1765608734037,0.511,3095.7,3095.6,0.2918]
[1765608734671,3.90610159,3095.9,3095.6,0.2918]
[1765608734876,0.511,3095.8,3095.6,0.2918]
[1765608736474,3.90610159,3095.9,3095.6,0.2918]
[1765608736677,0.51,3095.8,3095.6,0.2918]
[1765608736866,1.0005,3095.8,3095.6,0.2918]
[1765608737168,0.4637,3095.7,3095.3,0.2918]
[1765608737745,0.4637,3095.7,3095.4,0.970125]
[1765608737995,0.51,3095.6,3095.4,0.970125]
[1765608738562,0.51,3095.6,3095.5,0.2918]
[1765608739878,0.51,3095.6,3095.5,4.70819986]
[1765608741276,3.23020943,3095.8,3095.6,0.58047529]
[1765608741477,0.51,3095.7,3095.6,0.58047529]
[1765608741777,0.9734,3095.7,3095.6,0.58047529]
[1765608741984,0.51,3095.7,3095.6,0.58047529]
[1765608742470,0.9734,3095.7,3095.6,0.58047529]
[1765608743281,0.4634,3095.7,3095.6,0.58047529]
[1765608743584,0.51,3095.7,3095.6,0.58047529]
[1765608743744,0.51,3095.7,3095.6,0.87227529]
[1765608744146,0.9734,3095.7,3095.6,0.58047529]
[1765608744389,1.4689,3095.7,3095.6,0.58047529]
[1765608744885,0.9734,3095.7,3095.6,0.58047529]
[1765608745384,1.4404,3095.7,3095.6,0.58047529]
[1765608745683,0.9734,3095.7,3095.6,0.58047529]
[1765608745862,4.20368717,3095.7,3095.6,0.58047529]
[1765608746289,4.67068717,3095.7,3095.6,0.58047529]
[1765608747353,0.9304,3095.7,3095.6,0.58047529]
[1765608747553,0.9734,3095.7,3095.6,0.58047529]
[1765608748054,4.67068717,3095.7,3095.6,0.58047529]
[1765608748874,4.20368717,3095.7,3095.6,0.58047529]
[1765608749497,5.43261706,3095.7,3095.4,0.970125]
[1765608749685,0.4881,3095.5,3095.4,0.970125]
[1765608750478,0.4881,3095.5,3095.4,4.80604957]
[1765608751694,0.4881,3095.5,3095.4,3.83592457]
[1765608752391,0.4881,3095.5,3095.3,3.83592457]
[1765608754092,0.4881,3095.4,3095.3,4.41639986]
[1765608764690,0.4881,3095.4,3095.3,4.41673898]
[1765608766980,0.51,3095.5,3095.3,4.70853898]
[1765608775413,0.4904,3095.4,3095.3,0.58047529]
[1765608781823,0.9559,3095.4,3095.3,4.41673898]
[1765608784396,0.4904,3095.4,3095.3,4.41673898]
[1765608785735,0.9559,3095.4,3095.3,4.41673898]
[1765608793050,0.51,3095.5,3095.3,0.2918]
[1765608793912,0.9755,3095.5,3095.3,0.2918]
[1765608794114,0.9755,3095.5,3095.2,3.83626369]
[1765608796155,4.62660963,3095.5,3095.3,0.58047529]
[1765608796457,4.16110963,3095.5,3095.3,0.58047529]
[1765608796663,0.4904,3095.4,3095.3,4.41715841]
[1765608798175,0.4904,3095.4,3095.3,5.38735557]
[1765608798633,0.9559,3095.4,3095.3,5.38735557]
[1765608799271,0.4904,3095.4,3095.3,5.38735557]
[1765608800579,0.4904,3095.4,3095.3,1.55067245]
[1765608800736,0.9896,3095.4,3095.3,5.38735557]
[1765608801254,0.4904,3095.4,3095.3,5.38735557]
[1765608802012,0.4904,3095.4,3095.3,1.55067245]
[1765608802196,4.22020024,3095.4,3095.3,1.55067245]
[1765608802505,5.05831971,3095.4,3095.3,1.55067245]
[1765608803011,1.82771947,3095.4,3095.3,1.55067245]
[1765608803174,1.32851947,3095.4,3095.3,1.55067245]
[1765608803505,0.83811947,3095.4,3095.3,1.55067245]
[1765608804100,1.32591947,3095.4,3095.3,1.55067245]
[1765608804597,0.4878,3095.4,3095.3,1.55067245]
[1765608812813,0.9397,3095.4,3095.3,1.55067245]
[1765608813718,4.17030024,3095.4,3095.3,1.55067245]
[1765608813906,0.9397,3095.4,3095.3,1.55067245]
[1765608814431,4.16111036,3095.5,3095.4,0.58047529]
[1765608814618,0.4901,3095.4,3095.3,0.97019716]
[1765608814784,0.4901,3095.4,3095.1,0.58047529]
[1765608814986,0.4901,3095.4,3095.2,0.97019716]
[1765608817917,0.942,3095.4,3095.2,0.97019716]
[1765608818114,0.4901,3095.4,3095.2,0.97019716]
[1765608820128,0.942,3095.4,3095.2,0.97019716]
[1765608820430,0.93059253,3095.5,3095.2,0.97019716]
[1765608820832,1.38249253,3095.5,3095.2,0.97019716]
[1765608822032,4.61302379,3095.5,3095.2,0.97019716]
[1765608823624,0.93059253,3095.5,3095.2,0.97019716]
[1765608824023,1.38249253,3095.5,3095.2,0.97019716]
[1765608824425,4.16110952,3095.5,3095.2,0.97019716]
[1765608824732,4.61300952,3095.5,3095.2,0.97019716]
[1765608826837,4.16110952,3095.5,3095.2,0.97019716]
[1765608829833,4.61300952,3095.5,3095.2,0.97019716]
[1765608833239,1.15569716,3095.9,3095.4,0.2918]
[1765608833434,3.74018282,3095.8,3095.5,0.2918]
[1765608833611,6.97036564,3095.8,3095.5,0.2918]
[1765608834014,0.4901,3095.6,3095.4,0.58047529]
[1765608834206,3.23018282,3095.8,3095.4,0.58047529]
[1765608834413,0.51,3095.7,3095.6,0.970125]
[1765608834627,1.11064595,3095.7,3095.6,0.970125]
[1765608834825,1.56344595,3095.7,3095.6,0.970125]
[1765608835139,2.03124595,3095.7,3095.6,0.970125]
[1765608835550,5.26153312,3095.7,3095.6,0.970125]
[1765608836153,8.58626745,3095.7,3095.1,0.58047529]
[1765608836365,0.4528,3095.3,3095.1,0.58047529]
[1765608836517,0.51,3095.3,3095.2,0.97016264]
[1765608837639,0.51,3095.3,3095.2,1.26196264]
[1765608837954,0.51,3095.3,3095.2,0.2918]
[1765608838153,3.74071162,3095.3,3095.1,0.58047529]
[1765608838353,3.74071162,3095.3,3095.1,1.55066303]
[1765608840670,3.74071162,3095.3,3095.1,0.97018774]
[1765608840869,3.74071162,3095.3,3095.1,1.55066303]
[1765608842167,0.51,3095.3,3095.2,0.2918]
[1765608842670,0.51,3095.3,3095.2,1.26199088]
[1765608844760,0.51,3095.3,3095.2,0.2918]
[1765608849874,0.9628,3095.3,3095.1,0.97019716]
[1765608850472,0.51,3095.3,3095.1,0.97019716]
[1765608850702,0.51,3095.3,3095.2,0.2918]
[1765608852476,0.51,3095.3,3095.1,0.97019716]
[1765608852777,1.4306,3095.3,3095.1,0.97019716]
[1765608853078,0.9628,3095.3,3095.1,0.97019716]
[1765608853285,0.51,3095.3,3095.1,0.97019716]
[1765608853464,0.51,3095.3,3095.2,0.2918]
[1765608855793,4.20073996,3095.5,3095.2,4.12848136]
[1765608855976,3.2296612,3096.3,3095.5,0.58047529]
[1765608856162,3.2296612,3096.3,3096.2,0.2918]
[1765608856163,3.7396612,3096.3,3096.2,0.2918]
[1765608856367,4.1451652,3096.3,3096.2,0.2918]
[1765608857191,0.405504,3096.2,3096.0,0.97005285]
[1765608857384,0.78276264,3096.1,3096.0,0.97005285]
[1765608857577,1.23556264,3096.1,3096.0,0.97005285]
[1765608858092,4.46543247,3096.1,3096.0,0.97005285]
[1765608858598,8.1631023,3096.1,3095.8,0.58047529]
[1765608858751,0.09444716,3095.9,3095.8,0.58047529]
[1765608858953,1.05724716,3095.9,3095.8,0.58047529]
[1765608859180,2.58210211,3095.9,3095.7,0.97005285]
[1765608859479,0.87675495,3095.9,3095.8,0.2918]
[1765608859684,0.51,3096.3,3095.8,0.2918]
[1765608859886,3.22976551,3096.2,3096.1,0.58047529]
[1765608860275,4.15036551,3096.2,3095.7,3.83668136]
[1765608860480,0.4528,3096.1,3095.7,3.83668136]
[1765608860772,0.9206,3096.1,3095.8,0.96994308]
[1765608860975,1.01504716,3096.1,3095.8,0.96994308]
[1765608861888,0.9206,3096.1,3095.8,0.96994308]
[1765608863389,0.54724716,3096.1,3095.8,0.96994308]
[1765608863789,0.5651,3095.9,3095.8,0.96994308]
[1765608864085,0.65954716,3095.9,3095.8,0.58047529]
[1765608864289,1.05724716,3095.9,3095.8,0.58047529]
[1765608864589,0.54724716,3095.9,3095.8,0.58047529]
[1765608864785,1.05724716,3095.9,3095.8,0.58047529]
[1765608865458,4.9651749,3095.9,3095.6,0.58047529]
[1765608865658,0.4928,3095.8,3095.6,0.58047529]
[1765608866760,0.99494925,3095.9,3095.8,0.58047529]
[1765608867584,1.48774925,3095.9,3095.8,0.58047529]
[1765608867987,1.58219641,3095.9,3095.8,0.58047529]
[1765608868174,1.58219641,3095.9,3095.4,1.55059401]
[1765608868373,1.09724716,3095.9,3095.8,0.58047529]
[1765608868765,3.23007849,3095.9,3095.8,0.58047529]
[1765608868964,0.51,3096.1,3095.8,0.87227529]
[1765608869194,0.51,3096.1,3096.0,4.1274338]
[1765608869689,1.0028,3096.1,3096.0,3.8356338]
[1765608869870,1.0028,3096.1,3095.9,0.58047529]
[1765608870071,0.4596,3096.0,3095.7,0.58047529]
[1765608870468,0.4928,3095.8,3095.7,0.58047529]
[1765608871185,0.1929,3095.9,3095.7,0.58047529]
[1765608871388,0.4596,3096.0,3095.7,0.87227529]
[1765608871692,0.4596,3096.0,3095.7,1.36507529]
[1765608872492,3.63505564,3096.5,3095.9,0.87227529]
[1765608872675,4.20006681,3096.4,3096.1,3.8356338]
[1765608873881,3.68927181,3096.3,3096.1,0.58047529]
[1765608874377,0.51,3096.6,3096.2,4.1274338]
[1765608874697,0.51,3096.6,3096.4,3.8356338]
[1765608874878,0.69696669,3096.5,3096.4,3.8356338]
[1765608875279,0.69696669,3096.5,3096.2,3.8356338]
[1765608875979,3.22939722,3096.6,3096.4,4.1274338]
[1765608876183,0.001,3096.7,3096.5,0.87227529]
[1765608876384,0.001,3096.7,3096.6,4.70790909]
[1765608878200,0.001,3096.7,3096.6,7.9372574]
[1765608878502,0.001,3096.7,3096.6,8.2290574]
[1765608879502,0.001,3096.7,3096.6,7.9372574]
[1765608879886,0.001,3096.7,3096.6,8.2290574]
[1765608880899,0.001,3096.7,3096.6,11.7728912]
[1765608881080,0.001,3096.7,3096.6,12.0646912]
[1765608881288,0.001,3096.7,3096.6,12.19397556]
[1765608881493,0.001,3096.7,3096.6,11.90217556]
[1765608881803,0.001,3096.7,3096.6,8.06654176]
[1765608882104,0.001,3096.7,3096.6,7.9372574]
[1765608882478,0.001,3096.7,3096.6,11.7728912]
[1765608883075,0.001,3096.7,3096.6,28.8196842]
[1765608883290,0.001,3096.7,3096.6,29.1114842]
[1765608884107,0.001,3096.7,3096.6,29.7792732]
[1765608884305,0.001,3096.7,3096.6,15.1576002]
[1765608884614,0.001,3096.7,3096.6,7.9372574]
[1765608884774,0.001,3096.7,3096.6,8.2290574]
[1765608885479,0.001,3096.7,3096.6,8.35834176]
[1765608885806,0.001,3096.7,3096.6,4.1274338]
[1765608886308,0.001,3096.7,3096.6,7.9372574]
[1765608886600,0.001,3096.7,3096.6,4.70790909]
[1765608886802,0.4938,3096.7,3096.6,3.8356338]
[1765608887007,0.4938,3096.7,3096.6,4.41610909]
[1765608887178,0.001,3096.7,3096.6,4.41610909]
[1765608887906,0.9534,3096.7,3096.6,4.41610909]
[1765608888226,0.4938,3096.7,3096.6,4.41610909]
[1765608888411,0.001,3096.7,3096.6,4.41610909]
[1765608888581,0.001,3096.7,3096.6,4.70790909]
[1765608891109,0.4938,3096.7,3096.6,4.41610909]
[1765608891309,0.9534,3096.7,3096.6,4.41610909]
[1765608891516,0.4938,3096.7,3096.6,4.41610909]
[1765608892408,0.9534,3096.7,3096.6,4.41610909]
[1765608892607,5.45320157,3096.7,3096.6,0.58047529]
[1765608892809,5.85870557,3096.7,3096.6,0.58047529]
[1765608894918,6.8286361,3096.7,3096.6,0.58047529]
[1765608898319,0.405504,3096.6,3096.3,3.83415377]
[1765608898525,0.4669,3096.4,3096.3,4.41462906]
[1765608901333,3.6964569,3096.4,3096.3,0.58047529]
[1765608901519,4.1936569,3096.4,3096.3,4.41462906]
[1765608901725,4.93595767,3096.4,3096.3,0.58047529]
[1765608906343,5.34146167,3096.4,3096.3,0.58047529]
[1765608906936,0.405504,3096.3,3096.0,3.83415377]
[1765608907122,0.4669,3096.1,3095.8,3.83415377]
[1765608907331,3.22997416,3096.0,3095.9,0.58047529]
[1765608907540,3.72717416,3096.0,3095.9,0.58047529]
[1765608907852,0.9641,3096.0,3095.9,0.58047529]
[1765608910144,0.9641,3096.0,3095.5,3.81092776]
[1765608910446,0.9641,3096.0,3095.9,4.41462906]
[1765608911249,0.9641,3096.0,3095.9,0.58047529]
[1765608911429,0.9641,3096.0,3095.9,4.41462906]
[1765608911748,4.19407416,3096.0,3095.9,4.41462906]
[1765608912751,4.19407416,3096.0,3095.9,0.58047529]
[1765608912936,5.08446605,3096.0,3095.7,3.83415377]
[1765608913142,0.6928,3095.9,3095.7,3.83415377]
[1765608913446,0.4669,3095.8,3095.7,4.41462906]
[1765608913653,0.9641,3095.8,3095.7,4.41462906]
[1765608914431,0.4669,3095.8,3095.7,4.41462906]
[1765608915231,3.9357513,3095.9,3095.7,4.41462906]
[1765608916223,0.9641,3095.8,3095.7,0.58047529]
[1765608916426,0.9641,3095.8,3095.7,4.41462906]
[1765608917133,0.4669,3095.8,3095.7,4.41462906]
[1765608918568,3.69708282,3095.8,3095.7,4.41462906]
[1765608919258,4.19428282,3095.8,3095.7,4.41462906]
[1765608920859,4.19428282,3095.8,3095.7,0.58047529]
[1765608921068,4.19428282,3095.8,3095.7,4.41462906]
[1765608921571,0.4669,3095.8,3095.7,4.41462906]
[1765608921980,3.69708282,3095.8,3095.7,4.41462906]
[1765608922342,3.69708282,3095.8,3095.7,0.58047529]
[1765608922542,3.69708282,3095.8,3095.7,4.41462906]
[1765608922942,0.9641,3095.8,3095.7,4.41462906]
[1765608923464,4.19428282,3095.8,3095.7,4.41462906]
[1765608924382,0.9641,3095.8,3095.7,4.41462906]
[1765608925376,4.19428282,3095.8,3095.7,4.41462906]
[1765608925777,0.4669,3095.8,3095.7,4.41462906]
[1765608926161,0.4669,3095.8,3095.7,0.58047529]
[1765608926360,3.69708282,3095.8,3095.7,0.58047529]
[1765608926564,0.4669,3095.8,3095.7,0.58047529]
[1765608927379,3.69708282,3095.8,3095.7,0.58047529]
[1765608929382,4.18328282,3095.8,3095.7,0.58047529]
[1765608930283,0.9531,3095.8,3095.7,0.58047529]
[1765608931157,4.18328282,3095.8,3095.7,0.58047529]
[1765608931358,0.9531,3095.8,3095.7,0.58047529]
[1765608932370,0.4669,3095.8,3095.7,0.58047529]
[1765608934656,0.51,3095.8,3095.7,0.58047529]
[1765608937388,1.4757,3095.8,3095.7,0.58047529]
[1765608937575,0.9895,3095.8,3095.7,0.58047529]
[1765608940203,0.51,3095.8,3095.7,0.87227529]
[1765608940382,0.51,3095.8,3095.7,1.16407529]
[1765608940788,0.51,3095.8,3095.7,0.87227529]
[1765608950719,0.4795,3095.8,3095.7,0.58047529]
[1765608951517,0.51,3095.9,3095.7,0.58047529]
[1765608957700,3.22989746,3096.1,3095.7,0.58047529]
[1765608958001,0.51,3096.0,3095.7,0.58047529]
[1765608958628,0.51,3096.0,3095.7,4.41566416]
[1765608958828,0.9944,3096.0,3095.7,4.41566416]
[1765608959826,4.22439426,3096.0,3095.7,4.41566416]
[1765608960029,4.22439426,3096.0,3095.7,0.58047529]
[1765608960230,5.06402975,3096.0,3095.7,0.58047529]
[1765608960602,4.57962975,3096.0,3095.7,0.58047529]
[1765608960900,0.4705,3095.8,3095.7,0.58047529]
[1765608962232,3.73999426,3096.0,3095.7,0.58047529]
[1765608962433,4.22439426,3096.0,3095.7,0.58047529]
[1765608965034,0.9944,3096.0,3095.7,0.58047529]
[1765608967733,0.51,3095.9,3095.7,0.58047529]
[1765608969844,0.51,3095.9,3095.8,0.2918]
[1765608970042,3.22998209,3096.0,3095.8,0.2918]
[1765608970338,0.51,3095.9,3095.8,0.2918]
[1765608970542,0.9805,3095.9,3095.7,0.58047529]
[1765608972821,0.4705,3095.9,3095.7,0.58047529]
[1765608973021,0.9805,3095.9,3095.7,0.58047529]
[1765608975145,0.51,3095.9,3095.8,0.2918]
[1765608977550,0.51,3095.9,3095.7,0.58047529]
[1765608980251,0.51,3095.9,3095.7,1.55056578]
[1765608985959,0.51,3095.9,3095.8,3.83509237]
[1765608986761,0.9805,3095.9,3095.8,3.83509237]
[1765608991065,0.9805,3095.9,3095.8,3.83505569]
[1765608994841,1.4574,3095.9,3095.8,3.83505569]
[1765608995441,4.68747849,3095.9,3095.8,3.83505569]
[1765608995642,5.57623552,3095.9,3095.8,3.83505569]
[1765608999956,4.68747849,3095.9,3095.8,3.83505569]
[1765609002593,4.68747849,3095.9,3095.7,0.58047529]
[1765609002594,0.405504,3095.8,3095.7,0.58047529]
[1765609002759,0.405504,3095.8,3095.7,4.41553098]
[1765609003495,0.897204,3095.8,3095.7,4.41553098]
[1765609003893,1.86738547,3095.8,3095.7,4.41553098]
[1765609009875,0.51,3095.8,3095.7,4.70733098]
[1765609010994,0.51,3095.8,3095.7,5.67748421]
[1765609011496,0.51,3095.8,3095.7,8.90777138]
[1765609013394,0.51,3095.8,3095.7,5.67748421]
[1765609013582,0.51,3095.8,3095.7,8.90777138]
[1765609015195,0.51,3095.8,3095.7,5.67748421]
[1765609017170,0.51,3095.8,3095.7,8.90777138]
[1765609019396,0.405504,3095.9,3095.7,8.90777138]
[1765609019698,0.51,3095.8,3095.7,8.90777138]
[1765609023603,0.51,3095.8,3095.7,8.90813267]
[1765609024393,0.51,3095.8,3095.7,5.07271569]
[1765609024673,0.51,3095.8,3095.7,8.90813267]
[1765609029829,0.51,3095.8,3095.7,5.6778455]
[1765609030827,0.9779,3095.8,3095.7,5.3860455]
[1765609032231,0.9779,3095.8,3095.7,1.55062852]
[1765609032528,1.4685,3095.8,3095.7,5.3860455]
[1765609034124,0.9779,3095.8,3095.7,5.3860455]
[1765609039827,0.9779,3095.8,3095.7,4.41589227]
[1765609040633,0.9779,3095.8,3095.7,0.58047529]
[1765609040801,1.9383492,3095.8,3095.7,0.58047529]
[1765609042511,1.9373492,3095.8,3095.7,0.58047529]
[1765609049517,1.4675,3095.8,3095.7,0.58047529]
[1765609056957,0.9769,3095.8,3095.7,0.58047529]
[1765609057850,1.4423,3095.8,3095.7,0.58047529]
[1765609068770,0.9769,3095.8,3095.7,0.58047529]
[1765609073084,1.4423,3095.8,3095.7,0.58047529]
[1765609080392,0.9769,3095.8,3095.7,0.58047529]
[1765609081068,4.20708282,3095.8,3095.7,0.58047529]
[1765609081491,1.29550584,3095.8,3095.7,0.87227529]
[1765609081674,1.29550584,3095.8,3095.7,4.70802367]
[1765609081675,0.914504,3095.8,3095.7,4.70802367]
[1765609082001,0.405504,3095.9,3095.8,0.58047529]
[1765609082203,0.914504,3095.9,3095.8,0.58047529]
[1765609082495,1.384304,3095.9,3095.8,0.58047529]
[1765609083593,4.61438249,3095.9,3095.8,0.58047529]
[1765609084063,5.10718249,3095.9,3095.8,0.58047529]
[1765609095403,4.59818249,3095.9,3095.8,0.58047529]
[1765609095702,1.877104,3095.9,3095.8,0.58047529]
[1765609095900,1.384304,3095.9,3095.8,0.58047529]
[1765609097106,4.61438249,3095.9,3095.8,0.58047529]
[1765609100017,5.10718249,3095.9,3095.8,0.58047529]
[1765609101171,6.07733886,3095.9,3095.8,0.58047529]
[1765609104808,6.07733886,3095.9,3095.7,0.58047529]
[1765609107393,5.07530614,3095.9,3095.8,0.2918]
[1765609108012,6.04546251,3095.9,3095.8,0.2918]
[1765609109915,6.04546251,3095.9,3095.8,4.70790731]
[1765609112218,6.04546251,3095.9,3095.8,0.87227529]
[1765609112419,6.04546251,3095.9,3095.8,4.70790731]
[1765609116321,6.51676251,3095.9,3095.8,4.70790731]
[1765609120720,6.51676251,3095.9,3095.8,4.70786642]
[1765609122424,6.00776251,3095.9,3095.8,4.70786642]
[1765609122623,6.51676251,3095.9,3095.8,4.70786642]
[1765609125122,6.51676251,3095.9,3095.8,4.41606642]
[1765609128130,3.28668402,3095.9,3095.8,4.41606642]
[1765609130333,3.28668402,3095.9,3095.8,0.58047529]
[1765609130531,3.28668402,3095.9,3095.8,4.41606642]
[1765609133136,6.51676251,3095.9,3095.8,4.41606642]
[1765609133539,3.28668402,3095.9,3095.8,4.41606642]
[1765609134021,6.51676251,3095.9,3095.8,4.41606642]
[1765609137054,3.28668402,3095.9,3095.8,4.41606642]
[1765609138151,6.51676251,3095.9,3095.8,4.41606642]
[1765609140469,3.28668402,3095.9,3095.8,4.41606642]
[1765609140675,1.88466037,3095.9,3095.8,4.70786642]
[1765609141954,5.61283886,3095.9,3095.5,1.26195637]
[1765609142159,5.61283886,3095.9,3095.7,3.83559113]
[1765609142471,5.12658249,3095.9,3095.6,0.58047529]
[1765609142640,0.405504,3095.7,3095.6,0.58047529]
[1765609142841,0.902604,3095.7,3095.6,0.58047529]
[1765609143378,2.35670116,3095.7,3095.6,0.58047529]
[1765609144047,2.86570116,3095.7,3095.6,0.58047529]
[1765609145863,2.38180116,3095.7,3095.6,0.58047529]
[1765609150657,2.38180116,3095.7,3095.4,0.58047529]
[1765609150961,2.38180116,3095.7,3095.6,4.41606642]
[1765609151147,0.914504,3095.7,3095.6,4.70786642]
[1765609152564,1.88470116,3095.7,3095.6,4.70786642]
[1765609152734,1.88470116,3095.7,3095.6,4.70795755]
[1765609159873,1.37570116,3095.7,3095.6,4.70795755]
[1765609160049,1.88470116,3095.7,3095.6,4.70795755]
[1765609161165,1.88470116,3095.7,3095.6,0.87227529]
[1765609161371,1.88470116,3095.7,3095.6,4.41615755]
[1765609163487,1.88470116,3095.7,3095.6,4.70795755]
[1765609167974,1.88470116,3095.7,3095.6,4.41615755]
[1765609168482,1.88470116,3095.7,3095.6,4.70795755]
[1765609171881,1.88470116,3095.7,3095.6,0.87227529]
[1765609184921,1.88470116,3095.7,3095.6,4.7079319]
[1765609185212,1.88470116,3095.7,3095.6,0.87227529]
[1765609200525,1.37570116,3095.7,3095.6,0.87227529]
[1765609213134,1.88470116,3095.7,3095.6,0.87227529]
[1765609215539,1.37570116,3095.7,3095.6,0.87227529]
[1765609227251,1.37570116,3095.7,3095.6,0.58047529]
[1765609232053,1.37570116,3095.7,3095.6,4.4162099]
[1765609250139,1.37570116,3095.7,3095.6,4.7080099]
[1765609261082,0.1884,3096.2,3095.6,7.93840142]
[1765609261242,0.509,3096.0,3095.9,3.83573461]
[1765609261556,0.94828381,3096.0,3095.9,3.83573461]
[1765609261876,1.88348381,3096.0,3095.9,4.80583137]
[1765609262070,1.88348381,3096.0,3095.6,0.58047529]
[1765609262264,0.4696,3095.7,3095.6,0.58047529]
[1765609262460,0.4696,3095.7,3095.6,3.81086681]
[1765609262680,0.509,3096.0,3095.6,5.07276671]
[1765609262970,1.36732381,3096.0,3095.6,5.07276671]
[1765609263178,1.36732381,3096.0,3095.6,4.10266681]
[1765609263365,1.36732381,3096.0,3095.8,3.83573461]
[1765609263777,0.4696,3095.9,3095.8,3.83573461]
[1765609263987,0.4696,3095.9,3095.8,4.80583451]
[1765609269979,0.90172381,3096.0,3095.8,5.09763451]
[1765609270980,0.4696,3095.9,3095.8,4.80583451]
[1765609282000,0.4696,3095.9,3095.8,3.83573461]
[1765609286996,0.4696,3095.9,3095.6,0.58047529]
[1765609287310,0.4696,3095.9,3095.8,3.83573461]
[1765609290006,0.39272381,3096.0,3095.8,3.83573461]
[1765609291923,0.84872381,3096.0,3095.8,3.83573461]
[1765609292228,0.4579,3095.9,3095.6,0.58047529]
[1765609292520,4.14398051,3095.9,3095.8,3.83573461]
[1765609292724,4.93226587,3095.9,3095.8,3.83573461]
[1765609293618,4.93226587,3095.9,3095.6,0.58047529]
[1765609293931,0.4579,3095.7,3095.6,0.58047529]
[1765609305922,0.456,3095.9,3095.6,0.58047529]
[1765609307339,3.23001689,3096.0,3095.6,0.58047529]
[1765609307540,4.40173659,3096.0,3095.6,0.58047529]
[1765609310438,3.68611307,3095.9,3095.6,0.58047529]
[1765609311213,0.4579,3095.7,3095.6,0.58047529]
[1765609317052,3.68611307,3095.9,3095.6,0.87227529]
[1765609323269,0.456,3095.9,3095.6,0.87227529]
[1765609323560,1.27006226,3095.9,3095.6,4.70826977]
[1765609324429,0.4819,3095.7,3095.6,0.58047529]
[1765609324939,4.50015867,3095.9,3095.6,0.58047529]
[1765609325259,1.27006226,3095.9,3095.6,0.58047529]
[1765609325755,0.81406226,3095.9,3095.6,0.58047529]
[1765609326527,1.26606226,3095.9,3095.6,0.58047529]
[1765609326827,0.81406226,3095.9,3095.6,0.58047529]
[1765609330370,0.7157197,3096.0,3095.8,4.12779448]
[1765609330542,1.2247197,3096.0,3095.8,4.12779448]
[1765609332248,0.7157197,3096.0,3095.8,4.12779448]
[1765609332449,0.509,3096.0,3095.8,4.12779448]
[1765609332768,0.405504,3096.1,3095.8,4.12779448]
[1765609333073,0.509,3096.0,3095.8,4.12779448]
[1765609339779,0.961,3096.0,3095.8,4.12779448]
[1765609339948,0.509,3096.0,3095.8,4.12779448]
[1765609340144,0.509,3096.0,3095.9,0.2918]
[1765609352062,0.914504,3096.1,3095.9,0.2918]
[1765609352267,1.79544335,3096.1,3095.9,0.2918]
[1765609353817,5.49063415,3096.1,3095.9,0.2918]
[1765609353971,5.49063415,3096.1,3096.0,3.83496493]
[1765609354473,5.98183415,3096.1,3096.0,3.83496493]
[1765609356902,5.98183415,3096.1,3095.7,0.97009363]